[Event "70th RUS-ch Women Higher League 2020"]
[Site "Sochi"]
[Date "2020.10.11"]
[Round "4.16"]
[White "Miroshnik, Ekaterina"]
[Black "Komissarova, Soigina"]
[Result "1-0"]
[ECO "D30"]
[WhiteElo "2104"]
[BlackElo "1780"]
[Annotator "NA"]
[PlyCount "137"]
[EventDate "2020.10.08"]
[EventType "swiss"]
[EventCountry "RUS"]
[SourceTitle "playchess.com"]
[Source "ChessBase"]
[SourceQuality "1"]
[TimeControl "40/5400+30:1800+30"]

1. d4 {[%emt 0:00:00]} d5 {[%emt 0:00:00]} 2. c4 {[%emt 0:00:00]} e6 {[%emt 0:00:00]} 3. Nf3 {[%emt 0:00:00]} c6 {[%emt 0:00:04]} 4. Nbd2 {[%emt 0:00:00]} Nf6 {[%emt 0:01:40]} 5. e3 {[%emt 0:00:00]} c5 {[%emt 0:00:16]} 6. cxd5 {[%emt 0:01:56]} exd5 {[%emt 0:00:29]} 7. Bb5+ {[%emt 0:03:38]} Bd7 {[%emt 0:02:47]} 8. Be2 {[%emt 0:00:18]} Nc6 {[%emt 0:00:30]} 9. O-O {[%emt 0:00:18]} Be7 {[%emt 0:02:18]} 10. dxc5 {[%emt 0:00:19]} Bxc5 {[%emt 0:00:34]} 11. Nb3 {[%emt 0:01:47]} Bb6 {[%emt 0:01:18]} 12. Bd2 {[%emt 0:04:59]} O-O {[%emt 0:02:52]} 13. Bc3 {[%emt 0:01:32]} Be6 {[%emt 0:02:43]} 14. Rc1 {[%emt 0:08:43]} Rc8 {[%emt 0:04:49]} 15. Nbd4 {[%emt 0:13:09]} Ne4 {[%emt 0:02:16]} 16. Nxc6 {[%emt 0:01:18]} bxc6 {[%emt 0:01:02]} 17. Be5 {[%emt 0:01:26]} f6 {[%emt 0:02:52]} 18. Bg3 {[%emt 0:06:08]} Nxg3 {[%emt 0:02:41]} 19. hxg3 {[%emt 0:00:04]} c5 {[%emt 0:03:36]} 20. Ne1 {[%emt 0:02:14]} Qd6 {[%emt 0:03:00]} 21. Nd3 {[%emt 0:04:01]} Rfd8 {[%emt 0:02:03]} 22. Nf4 {[%emt 0:01:00]} Bf7 {[%emt 0:02:03]} 23. Bg4 {[%emt 0:02:49]} Rc7 {[%emt 0:01:20]} 24. Qc2 {[%emt 0:10:52]} c4 {[%emt 0:09:13]} 25. Rfd1 {[%emt 0:05:34]} Qe5 {[%emt 0:03:08]} 26. Bf3 {[%emt 0:05:59]} g5 {[%emt 0:01:58]} 27. Ne2 {[%emt 0:01:17]} Bg6 {[%emt 0:01:28]} 28. Qd2 {[%emt 0:05:51]} Rcd7 {[%emt 0:03:31]} 29. Nd4 {[%emt 0:01:35]} Bd3 {[%emt 0:01:06]} 30. Nc6 {[%emt 0:01:46]} Qc7 {[%emt 0:05:14]} 31. Nxd8 {[%emt 0:00:11]} Qxd8 {[%emt 0:00:35]} 32. Be2 {[%emt 0:09:14]} Ba5 {[%emt 0:00:51]} 33. b4 {[%emt 0:00:09]} Bxb4 {[%emt 0:02:00]} 34. Qxb4 {[%emt 0:00:05]} Bxe2 {[%emt 0:00:06]} 35. Rd2 {[%emt 0:02:26]} Bd3 {[%emt 0:00:56]} 36. Rb2 {[%emt 0:00:27]} Kg7 {[%emt 0:01:44]} 37. Qc3 {[%emt 0:00:53]} Qe7 {[%emt 0:05:46]} 38. Rb5 {[%emt 0:01:30]} Qd6 {[%emt 0:06:35]} 39. Qb2 {[%emt 0:01:05]} c3 {[%emt 0:02:16]} 40. Rxc3 {[%emt 0:00:00]} Bxb5 {[%emt 0:00:00]} 41. Qxb5 {[%emt 0:00:11]} Qe6 {[%emt 0:04:18]} 42. Rc6 {[%emt 0:03:29]} Qg4 {[%emt 0:02:17]} 43. Qd3 {[%emt 0:04:24]} Rb7 {[%emt 0:02:47]} 44. Qc2 {[%emt 0:09:21]} Rd7 {[%emt 0:03:56]} 45. Qb1 {[%emt 0:07:27]} Qa4 {[%emt 0:02:44]} 46. Qc2 {[%emt 0:03:07]} Qg4 {[%emt 0:04:01]} 47. Qb3 {[%emt 0:01:32]} Qe2 {[%emt 0:01:15]} 48. Rc1 {[%emt 0:01:55]} Qg4 {[%emt 0:02:23]} 49. Rd1 {[%emt 0:01:09]} Qf5 {[%emt 0:02:26]} 50. Qd3 {[%emt 0:03:35]} Qe6 {[%emt 0:00:45]} 51. Qd4 {[%emt 0:00:16]} Qa6 {[%emt 0:01:49]} 52. e4 {[%emt 0:02:15]} Qxa2 {[%emt 0:01:48]} 53. exd5 {[%emt 0:00:24]} a5 {[%emt 0:00:33]} 54. Re1 {[%emt 0:01:28]} Qxd5 {[%emt 0:00:33]} 55. Re7+ {[%emt 0:00:13]} Rxe7 {[%emt 0:00:58]} 56. Qxd5 {[%emt 0:00:00]} Ra7 {[%emt 0:00:54]} 57. Qc5 {[%emt 0:00:53]} Rd7 {[%emt 0:00:13]} 58. Qxa5 {[%emt 0:00:07]} Rf7 {[%emt 0:00:32]} 59. Qc5 {[%emt 0:00:13]} Kg6 {[%emt 0:00:48]} 60. Qd6 {[%emt 0:00:05]} h6 {[%emt 0:00:53]} 61. Qe6 {[%emt 0:00:05]} Kg7 {[%emt 0:00:23]} 62. Kh2 {[%emt 0:00:10]} Kg6 {[%emt 0:00:12]} 63. Kh3 {[%emt 0:00:06]} h5 {[%emt 0:00:19]} 64. f4 {[%emt 0:01:40]} g4+ {[%emt 0:00:43]} 65. Kh4 {[%emt 0:00:03]} Rg7 {[%emt 0:01:11]} 66. Qe8+ {[%emt 0:00:14]} Rf7 {[%emt 0:00:42]} 67. Qg8+ {[%emt 0:00:11]} Rg7 {[%emt 0:00:10]} 68. f5+ {[%emt 0:00:19]} Kh6 {[%emt 0:00:13]} 69. Qh8+ 1-0

[Event "70th RUS-ch Women Higher League 2020"]
[Site "Sochi"]
[Date "2020.10.11"]
[Round "4.17"]
[White "Salakhova, Adelya"]
[Black "Gorovenko, Darya"]
[Result "0-1"]
[ECO "B31"]
[WhiteElo "1885"]
[BlackElo "2120"]
[Annotator "ChessBase"]
[PlyCount "128"]
[EventDate "2020.10.08"]
[EventType "swiss"]
[EventCountry "RUS"]
[SourceTitle "playchess.com"]
[Source "ChessBase"]
[SourceQuality "1"]
[TimeControl "40/5400+30:1800+30"]

1. e4 {[%emt 0:00:00]} c5 {[%emt 0:00:00]} 2. Nf3 {[%emt 0:00:00]} Nc6 {[%emt 0:00:00]} 3. Bb5 {[%emt 0:00:12]} g6 {[%emt 0:00:04]} 4. O-O {[%emt 0:00:47]} Bg7 {[%emt 0:00:10]} 5. Bxc6 {[%emt 0:01:51]} bxc6 {[%emt 0:00:35]} 6. Re1 {[%emt 0:03:29]} d5 {[%emt 0:01:57]} 7. d3 {[%emt 0:06:48]} e6 {[%emt 0:01:28]} 8. Nc3 {[%emt 0:04:37]} Ne7 {[%emt 0:00:57]} 9. Bg5 {[%emt 0:02:56]} Bb7 {[%emt 0:09:33]} 10. Qd2 {[%emt 0:08:28]} h6 {[%emt 0:02:25]} 11. Bf4 {[%emt 0:01:56]} Qb6 {[%emt 0:05:31]} 12. Rab1 {[%emt 0:05:24]} Rd8 {[%emt 0:02:42]} 13. Na4 {[%emt 0:14:10]} Qb5 {[%emt 0:00:29]} 14. b3 {[%emt 0:08:53]} g5 {[%emt 0:03:26]} 15. Bg3 {[%emt 0:06:28]} Ng6 {[%emt 0:04:15]} 16. Qc1 {[%emt 0:11:45]} c4 {[%emt 0:10:46]} 17. exd5 {[%emt 0:03:02]} cxd5 {[%emt 0:00:58]} 18. bxc4 {[%emt 0:01:37]} Qxa4 {[%emt 0:00:51]} 19. Rxb7 {[%emt 0:00:13]} Qa6 {[%emt 0:00:10]} 20. Qb1 {[%emt 0:03:02]} dxc4 {[%emt 0:00:27]} 21. dxc4 {[%emt 0:02:13]} Qxc4 {[%emt 0:00:31]} 22. Rxa7 {[%emt 0:04:57]} O-O {[%emt 0:02:01]} 23. Qb3 {[%emt 0:00:16]} Rc8 {[%emt 0:03:35]} 24. Qb7 {[%emt 0:01:40]} g4 {[%emt 0:05:36]} 25. Nh4 {[%emt 0:01:31]} Qxc2 {[%emt 0:00:56]} 26. Nxg6 {[%emt 0:00:24]} Qxg6 {[%emt 0:00:06]} 27. a4 {[%emt 0:02:02]} Bd4 {[%emt 0:02:10]} 28. Ra6 {[%emt 0:00:28]} Qd3 {[%emt 0:02:24]} 29. Rc6 {[%emt 0:01:20]} Qd2 {[%emt 0:06:39]} 30. Rf1 {[%emt 0:00:05]} Ra8 {[%emt 0:00:45]} 31. Qb5 {[%emt 0:00:28]} Ra5 {[%emt 0:03:00]} 32. Qc4 {[%emt 0:00:59]} Rfa8 {[%emt 0:01:25]} 33. Rc8+ {[%emt 0:00:26]} Rxc8 {[%emt 0:00:06]} 34. Qxc8+ {[%emt 0:00:02]} Kg7 {[%emt 0:00:05]} 35. Bd6 {[%emt 0:01:06]} Bxf2+ {[%emt 0:03:15]} 36. Rxf2 {[%emt 0:00:01]} Qxd6 {[%emt 0:00:09]} 37. Qb7 {[%emt 0:00:44]} Qd1+ {[%emt 0:00:43]} 38. Rf1 {[%emt 0:00:03]} Qd4+ {[%emt 0:00:10]} 39. Rf2 {[%emt 0:00:59]} Ra7 {[%emt 0:01:50]} 40. Qb2 {[%emt 0:00:00]} Qxb2 {[%emt 0:00:00]} 41. Rxb2 {[%emt 0:02:51]} Rxa4 {[%emt 0:00:28]} 42. Kf2 {[%emt 0:00:15]} Ra3 {[%emt 0:00:23]} 43. Rb5 {[%emt 0:00:35]} Kg6 {[%emt 0:00:55]} 44. Re5 {[%emt 0:00:14]} h5 {[%emt 0:01:40]} 45. g3 {[%emt 0:02:53]} Rf3+ {[%emt 0:00:17]} 46. Ke2 {[%emt 0:00:57]} Rf5 {[%emt 0:00:06]} 47. Re3 {[%emt 0:00:20]} Kg5 {[%emt 0:00:13]} 48. Re4 {[%emt 0:00:56]} h4 {[%emt 0:01:44]} 49. h3 {[%emt 0:00:22]} gxh3 {[%emt 0:00:04]} 50. Rxh4 {[%emt 0:00:06]} h2 {[%emt 0:00:12]} 51. Rxh2 {[%emt 0:00:38]} Kg4 {[%emt 0:00:04]} 52. Rg2 {[%emt 0:01:04]} Ra5 {[%emt 0:01:37]} 53. Rg1 {[%emt 0:02:01]} Ra3 {[%emt 0:01:50]} 54. Kf2 {[%emt 0:00:14]} Rf3+ {[%emt 0:00:18]} 55. Ke2 {[%emt 0:00:50]} Rxg3 {[%emt 0:00:35]} 56. Ra1 {[%emt 0:01:32]} Kf5 {[%emt 0:01:51]} 57. Rf1+ {[%emt 0:01:49]} Kg6 {[%emt 0:00:06]} 58. Ra1 {[%emt 0:01:09]} f5 {[%emt 0:00:13]} 59. Ra8 {[%emt 0:00:29]} Kf6 {[%emt 0:00:09]} 60. Ra6 {[%emt 0:00:19]} f4 {[%emt 0:00:08]} 61. Kf2 {[%emt 0:00:49]} Rb3 {[%emt 0:00:22]} 62. Ra8 {[%emt 0:00:47]} Kf5 {[%emt 0:00:11]} 63. Re8 {[%emt 0:00:53]} e5 {[%emt 0:00:05]} 64. Ra8 {[%emt 0:00:17]} Rb2+ {[%emt 0:00:07]} 0-1

[Event "70th RUS-ch Women Higher League 2020"]
[Site "Sochi"]
[Date "2020.10.11"]
[Round "4.18"]
[White "Garmash, Aliona"]
[Black "Makarova, Olga"]
[Result "1-0"]
[ECO "D37"]
[WhiteElo "2093"]
[BlackElo "1875"]
[Annotator "ChessBase"]
[PlyCount "71"]
[EventDate "2020.10.08"]
[EventType "swiss"]
[EventCountry "RUS"]
[SourceTitle "playchess.com"]
[Source "ChessBase"]
[SourceQuality "1"]
[TimeControl "40/5400+30:1800+30"]

1. d4 {[%emt 0:00:00]} d5 {[%emt 0:00:00]} 2. Nf3 {[%emt 0:00:00]} Nf6 {[%emt 0:00:00]} 3. c4 {[%emt 0:00:00]} e6 {[%emt 0:00:00]} 4. Nc3 {[%emt 0:00:00]} Be7 {[%emt 0:00:00]} 5. Bf4 {[%emt 0:00:05]} O-O {[%emt 0:00:07]} 6. e3 {[%emt 0:00:16]} Nbd7 {[%emt 0:00:11]} 7. h3 {[%emt 0:01:56]} c5 {[%emt 0:03:34]} 8. Bd3 {[%emt 0:12:58]} dxc4 {[%emt 0:02:09]} 9. Bxc4 {[%emt 0:00:06]} a6 {[%emt 0:00:27]} 10. a4 {[%emt 0:06:40]} Qa5 {[%emt 0:11:24]} 11. O-O {[%emt 0:02:35]} cxd4 {[%emt 0:06:21]} 12. exd4 {[%emt 0:05:54]} Nb6 {[%emt 0:01:12]} 13. Bd3 {[%emt 0:01:13]} Nbd5 {[%emt 0:01:21]} 14. Bd2 {[%emt 0:01:15]} Bd7 {[%emt 0:15:26]} 15. Ne5 {[%emt 0:04:09]} Rfd8 {[%emt 0:04:58]} 16. Nb5 {[%emt 0:09:37]} Qb6 {[%emt 0:10:49]} 17. a5 {[%emt 0:00:33]} Qxb5 {[%emt 0:00:13]} 18. Bxb5 {[%emt 0:00:05]} Bxb5 {[%emt 0:00:04]} 19. Re1 {[%emt 0:00:31]} Nb4 {[%emt 0:00:48]} 20. Bc3 {[%emt 0:08:42]} Rac8 {[%emt 0:01:22]} 21. Re3 {[%emt 0:07:52]} Nbd5 {[%emt 0:04:11]} 22. Rf3 {[%emt 0:00:55]} Rc7 {[%emt 0:01:40]} 23. Rc1 {[%emt 0:02:34]} Rdc8 {[%emt 0:01:34]} 24. Bd2 {[%emt 0:02:43]} Bf8 {[%emt 0:04:28]} 25. Rxc7 {[%emt 0:00:25]} Rxc7 {[%emt 0:00:02]} 26. Qe1 {[%emt 0:09:29]} Rc2 {[%emt 0:05:15]} 27. g4 {[%emt 0:02:18]} h6 {[%emt 0:02:31]} 28. h4 {[%emt 0:01:27]} Bd6 {[%emt 0:01:37]} 29. g5 {[%emt 0:02:09]} hxg5 {[%emt 0:00:45]} 30. hxg5 {[%emt 0:00:11]} Ne4 {[%emt 0:00:21]} 31. Qxe4 {[%emt 0:00:52]} Rxd2 {[%emt 0:00:05]} 32. g6 {[%emt 0:03:18]} Rd1+ {[%emt 0:03:17]} 33. Kh2 {[%emt 0:02:00]} f5 {[%emt 0:02:25]} 34. Qh4 {[%emt 0:01:43]} Nf6 {[%emt 0:00:22]} 35. Rc3 {[%emt 0:01:45]} Ng4+ {[%emt 0:12:09]} 36. Kg2 {[%emt 0:00:15]} 1-0

[Event "70th RUS-ch Women Higher League 2020"]
[Site "Sochi"]
[Date "2020.10.12"]
[Round "5.4"]
[White "Kovanova, Baira"]
[Black "Grigorieva, Yulia"]
[Result "1/2-1/2"]
[ECO "E67"]
[WhiteElo "2324"]
[BlackElo "2237"]
[Annotator "NA"]
[PlyCount "81"]
[EventDate "2020.10.08"]
[EventType "swiss"]
[EventCountry "RUS"]
[SourceTitle "playchess.com"]
[Source "ChessBase"]
[SourceQuality "1"]
[TimeControl "40/5400+30:1800+30"]

1. d4 {[%emt 0:00:00]} Nf6 {[%emt 0:00:00]} 2. c4 {[%emt 0:00:00]} g6 {[%emt 0:00:00]} 3. g3 {[%emt 0:00:00]} Bg7 {[%emt 0:00:22]} 4. Bg2 {[%emt 0:00:00]} O-O {[%emt 0:00:47]} 5. Nc3 {[%emt 0:00:05]} d6 {[%emt 0:00:29]} 6. Nf3 {[%emt 0:00:16]} Nbd7 {[%emt 0:00:32]} 7. O-O {[%emt 0:00:18]} e5 {[%emt 0:00:21]} 8. h3 {[%emt 0:00:19]} Re8 {[%emt 0:04:16]} 9. e4 {[%emt 0:02:19]} exd4 {[%emt 0:00:30]} 10. Nxd4 {[%emt 0:00:02]} Nc5 {[%emt 0:00:29]} 11. Re1 {[%emt 0:00:13]} Bd7 {[%emt 0:00:22] The modern move.} 12. Bf4 {[%emt 0:10:52]} h6 {[%emt 0:00:47]} 13. Qc2 {[%emt 0:06:40] E68: King's Indian: Fianchetto: 6...Nbd7 7 0-0 e5 8 e4.} Nfxe4 {[%emt 0:05:01]} 14. Nxe4 {[%emt 0:03:01]} Bxd4 {[%emt 0:00:16]} 15. Rad1 {[%emt 0:17:44]} (15. Qd2 $5 {[%cal Rd2d4]} Ne6 16. Bxh6 $14) 15... Bg7 {[%emt 0:19:50]} 16. Nxc5 {[%emt 0:00:42] [#]} Rxe1+ $146 {[%emt 0:04:46]} ({Predecessor:} 16... dxc5 17. Bxb7 Rb8 18. Bd5 g5 19. Qg6 Rxe1+ 20. Rxe1 Qf6 21. Qxf6 Bxf6 22. Bc1 c6 {½-½ (31) Kourkoulos Arditis,S (2457)-Ioannidis,E (2379) Thessaloniki 2019}) 17. Rxe1 {[%emt 0:00:01]} dxc5 {[%emt 0:00:08]} 18. Bxb7 {[%emt 0:06:37]} Rb8 {[%emt 0:00:38]} 19. Bd5 $11 {[%emt 0:00:57]} Rxb2 {[%emt 0:23:43]} 20. Qxg6 {[%emt 0:06:20]} Qf6 {[%emt 0:00:13]} 21. Qh5 {[%emt 0:07:21]} Rxa2 {[%emt 0:11:13]} 22. Kg2 {[%emt 0:00:29]} c6 {[%emt 0:08:06]} 23. Bf3 {[%emt 0:01:07]} Bf5 {[%emt 0:08:31]} 24. Re5 {[%emt 0:12:22]} Bg6 {[%emt 0:02:14]} 25. Re8+ {[%emt 0:00:37]} Kh7 {[%emt 0:00:07]} 26. Qxc5 {[%emt 0:00:10]} Qc3 {[%emt 0:04:22]} 27. Be4 {[%emt 0:05:54]} Qd4 {[%emt 0:03:08]} 28. Bxg6+ {[%emt 0:01:52]} fxg6 {[%emt 0:00:31]} 29. Qxd4 {[%emt 0:03:27]} Bxd4 {[%emt 0:00:01]} 30. Be3 {[%emt 0:01:03]} Bxe3 {[%emt 0:00:55]} 31. Rxe3 {[%emt 0:00:02]} Rc2 {[%emt 0:01:58]} 32. Re7+ {[%emt 0:06:20]} Kg8 {[%emt 0:00:04]} 33. Rxa7 {[%emt 0:03:03]} Rxc4 {[%emt 0:00:06]} 34. Rc7 {[%emt 0:01:06]} Rc3 {[%emt 0:01:19]} 35. g4 {[%emt 0:02:26]} c5 {[%emt 0:00:41]} 36. h4 {[%emt 0:00:28]} c4 {[%emt 0:00:32]} 37. h5 {[%emt 0:02:47]} gxh5 {[%emt 0:00:27]} 38. gxh5 {[%emt 0:00:02]} Rc1 {[%emt 0:00:36]} 39. Kf3 {[%emt 0:00:57]} c3 {[%emt 0:00:31]} 40. Ke2 {[%emt 0:00:00]} c2 {[%emt 0:00:00]} 41. Kd2 {[%emt 0:04:37]} 1/2-1/2

[Event "70th RUS-ch Women Higher League 2020"]
[Site "Sochi"]
[Date "2020.10.12"]
[Round "5.5"]
[White "Voit, Daria"]
[Black "Nasyrova, Ekaterina"]
[Result "1/2-1/2"]
[ECO "D00"]
[WhiteElo "2343"]
[BlackElo "2171"]
[Annotator "NA"]
[PlyCount "141"]
[EventDate "2020.10.08"]
[EventType "swiss"]
[EventCountry "RUS"]
[SourceTitle "playchess.com"]
[Source "ChessBase"]
[SourceQuality "1"]
[TimeControl "40/5400+30:1800+30"]

1. d4 {[%emt 0:00:00]} d5 {[%emt 0:00:00]} 2. Bf4 {[%emt 0:00:00]} e6 {[%emt 0:00:00]} 3. e3 {[%emt 0:00:00]} Bd6 {[%emt 0:00:07]} 4. Bg3 {[%emt 0:00:00]} Ne7 {[%emt 0:00:57]} 5. Bd3 {[%emt 0:00:00]} O-O {[%emt 0:02:57]} 6. Nd2 {[%emt 0:02:01]} Ng6 {[%emt 0:02:04]} 7. f4 {[%emt 0:02:41]} c5 {[%emt 0:02:07]} 8. c3 {[%emt 0:00:10]} Nc6 {[%emt 0:01:42]} 9. Ngf3 {[%emt 0:03:15]} Qb6 {[%emt 0:01:52]} 10. Qb1 {[%emt 0:02:53]} cxd4 {[%emt 0:04:24]} 11. cxd4 {[%emt 0:00:18]} Bd7 {[%emt 0:01:13]} 12. a3 {[%emt 0:01:02]} a5 {[%emt 0:01:26]} 13. O-O {[%emt 0:05:02]} f5 {[%emt 0:02:04]} 14. Bf2 {[%emt 0:03:14]} a4 {[%emt 0:01:41]} 15. Kh1 {[%emt 0:15:52]} Na5 {[%emt 0:03:51]} 16. g4 {[%emt 0:02:52]} Bb5 {[%emt 0:01:27]} 17. gxf5 {[%emt 0:00:37]} Bxd3 $15 {[%emt 0:12:31]} 18. Qxd3 {[%emt 0:00:04]} Rxf5 {[%emt 0:00:49]} 19. Qc2 {[%emt 0:13:51]} Qb5 {[%emt 0:09:33]} 20. Rg1 {[%emt 0:01:26]} Qd7 {[%emt 0:03:42]} 21. Rac1 {[%emt 0:08:09]} b5 {[%emt 0:02:24]} 22. Rg2 {[%emt 0:06:39]} Nc4 {[%emt 0:02:54]} 23. Nxc4 {[%emt 0:00:30]} bxc4 {[%emt 0:00:15]} 24. Rcg1 {[%emt 0:00:29]} Rb8 {[%emt 0:05:44]} 25. Ng5 {[%emt 0:03:35]} Bf8 {[%emt 0:14:53]} 26. Nxh7 {[%emt 0:01:51]} Kxh7 {[%emt 0:01:43]} 27. Rxg6 {[%emt 0:00:05]} Rb3 {[%emt 0:01:01]} 28. R1g2 {[%emt 0:13:42]} Kg8 {[%emt 0:01:38]} 29. R6g3 {[%emt 0:00:11]} c3 {[%emt 0:02:43]} 30. bxc3 {[%emt 0:00:05]} Qc6 {[%emt 0:00:18]} 31. Be1 {[%emt 0:01:14]} Rxa3 {[%emt 0:06:07]} 32. Rg5 {[%emt 0:00:36]} Rf6 {[%emt 0:03:36]} 33. Rg1 {[%emt 0:02:45]} Qd7 {[%emt 0:02:00]} 34. e4 {[%emt 0:04:01]} dxe4 {[%emt 0:03:44]} 35. Qxe4 {[%emt 0:00:07]} Ra1 {[%emt 0:00:41]} 36. c4 {[%emt 0:04:26]} a3 {[%emt 0:00:55]} 37. Ra5 {[%emt 0:02:03]} Qc7 {[%emt 0:00:44]} 38. c5 {[%emt 0:00:31]} a2 {[%emt 0:01:56]} 39. Ra6 {[%emt 0:02:34]} Qxf4 {[%emt 0:01:07]} 40. Qxf4 {[%emt 0:00:00]} Rxf4 {[%emt 0:00:00]} 41. Bf2 {[%emt 0:01:31]} Rxg1+ {[%emt 0:02:38]} 42. Kxg1 {[%emt 0:07:41]} Rf3 {[%emt 0:00:38]} 43. Rxa2 {[%emt 0:00:41]} Rc3 {[%emt 0:00:11]} 44. Bg3 {[%emt 0:08:10]} Be7 {[%emt 0:00:47]} 45. Kf2 {[%emt 0:01:23]} Bf6 {[%emt 0:00:28]} 46. Rd2 {[%emt 0:00:56]} Kf7 {[%emt 0:00:13]} 47. Ke2 {[%emt 0:00:03]} Ke8 {[%emt 0:00:22]} 48. Rd3 {[%emt 0:00:02]} Rc2+ {[%emt 0:00:19]} 49. Ke3 {[%emt 0:00:04]} Kd7 {[%emt 0:00:18]} 50. Ke4 {[%emt 0:09:39]} Re2+ {[%emt 0:01:43]} 51. Re3 {[%emt 0:00:02]} Rd2 {[%emt 0:00:13]} 52. Be5 {[%emt 0:00:03]} Bxe5 {[%emt 0:02:04]} 53. Kxe5 {[%emt 0:00:02]} Rxh2 {[%emt 0:00:14]} 54. Rg3 {[%emt 0:00:05]} Rh5+ {[%emt 0:00:27]} 55. Ke4 {[%emt 0:00:05]} Rh4+ {[%emt 0:09:47]} 56. Kd3 {[%emt 0:01:10]} Rh1 {[%emt 0:02:16]} 57. Rxg7+ {[%emt 0:00:47]} Kc6 {[%emt 0:00:27]} 58. Ra7 {[%emt 0:03:03]} Rd1+ {[%emt 0:01:20]} 59. Kc3 {[%emt 0:02:14]} Re1 {[%emt 0:00:21]} 60. Ra6+ {[%emt 0:00:14]} Kc7 {[%emt 0:00:24]} 61. Rd6 {[%emt 0:00:48]} Re3+ {[%emt 0:01:37]} 62. Kc4 {[%emt 0:00:28]} Re2 {[%emt 0:00:57]} 63. Kd3 {[%emt 0:01:00]} Re1 {[%emt 0:00:10]} 64. Ra6 {[%emt 0:00:19]} Kd7 {[%emt 0:01:13]} 65. Rb6 {[%emt 0:00:13]} Kc7 {[%emt 0:00:22]} 66. Rb2 {[%emt 0:01:40]} Kc6 {[%emt 0:01:15]} 67. Re2 {[%emt 0:00:39]} Rxe2 {[%emt 0:00:26]} 68. Kxe2 {[%emt 0:00:03]} e5 {[%emt 0:00:10]} 69. dxe5 {[%emt 0:00:10]} Kxc5 {[%emt 0:00:08]} 70. Ke3 {[%emt 0:00:05]} Kd5 {[%emt 0:00:08]} 71. e6 1/2-1/2

[Event "70th RUS-ch Women Higher League 2020"]
[Site "Sochi"]
[Date "2020.10.12"]
[Round "5.6"]
[White "Solozhenkina, Elizaveta"]
[Black "Getman, Tatyana"]
[Result "0-1"]
[ECO "D38"]
[WhiteElo "2301"]
[BlackElo "2271"]
[Annotator "NA"]
[PlyCount "108"]
[EventDate "2020.10.08"]
[EventType "swiss"]
[EventCountry "RUS"]
[SourceTitle "playchess.com"]
[Source "ChessBase"]
[SourceQuality "1"]
[TimeControl "40/5400+30:1800+30"]

1. d4 {[%emt 0:00:33]} Nf6 {[%emt 0:00:00]} 2. c4 {[%emt 0:00:08]} e6 {[%emt 0:00:00]} 3. Nf3 d5 {[%emt 0:00:07]} 4. Nc3 {[%emt 0:00:36]} Bb4 {[%emt 0:00:24]} 5. Bg5 {[%emt 0:00:27]} Nbd7 {[%emt 0:00:29]} 6. cxd5 {[%emt 0:00:40]} exd5 {[%emt 0:00:10]} 7. e3 {[%emt 0:00:22]} c5 {[%emt 0:00:35]} 8. Bd3 {[%emt 0:00:40]} Qa5 {[%emt 0:00:54]} 9. O-O {[%emt 0:05:03]} c4 {[%emt 0:00:40]} 10. Bf5 {[%emt 0:01:18]} O-O {[%emt 0:00:37]} 11. Qc2 {[%emt 0:00:13]} Re8 {[%emt 0:00:47]} 12. Nd2 {[%emt 0:01:03]} g6 {[%emt 0:00:37]} 13. Bxd7 {[%emt 0:00:39]} Nxd7 {[%emt 0:00:09]} 14. h4 {[%emt 0:07:33] D38: Queen's Gambit Declined: Ragozin Defence (4 Nf3 Bb4).} Nb6 {[%emt 0:02:11]} 15. f3 {[%emt 0:01:44] [#]} Kg7 $146 {[%emt 0:09:23]} ({Predecessor:} 15... Bxc3 16. bxc3 Qa4 17. Qc1 Bf5 18. Re1 Qc6 19. a4 Bd3 20. a5 Nd7 21. Qa3 Re6 22. Ra2 {1-0 (46) Kozul,Z (2630)-Abasov,N (2523) Jerusalem 2015}) 16. e4 {[%emt 0:09:27]} f6 {[%emt 0:04:18]} 17. Bf4 {[%emt 0:02:14]} dxe4 {[%emt 0:02:48]} 18. fxe4 {[%emt 0:02:42]} Qh5 {[%emt 0:01:55] [#]} (18... Bg4 $14) 19. Bg3 {[%emt 0:04:22]} (19. Nxc4 $1 $16 {[%mdl 512]} Be6 (19... Nxc4 20. Nd5) 20. Nxb6 axb6 21. e5) 19... Be6 {[%emt 0:02:33]} 20. a3 {[%emt 0:06:44]} Be7 {[%emt 0:01:05]} 21. Nf3 {[%emt 0:01:04]} Rad8 {[%emt 0:03:09]} 22. Rad1 {[%emt 0:02:48]} Bg4 $14 {[%emt 0:04:08]} 23. Bc7 {[%emt 0:24:55]} Rd7 {[%emt 0:11:07]} 24. Bg3 {[%emt 0:04:08]} Red8 {[%emt 0:05:38]} 25. Ne2 {[%emt 0:00:38]} Bd6 {[%emt 0:07:04]} 26. Bxd6 {[%emt 0:11:32]} Rxd6 {[%emt 0:04:44]} 27. d5 {[%emt 0:00:06]} Bxf3 {[%emt 0:10:12]} 28. Rxf3 {[%emt 0:00:45]} Qxh4 {[%emt 0:00:21]} 29. Nf4 {[%emt 0:01:16]} Re8 {[%emt 0:02:17]} 30. Ne6+ {[%emt 0:06:19]} Rexe6 {[%emt 0:05:33]} 31. dxe6 {[%emt 0:00:05]} Rxe6 {[%emt 0:00:05]} 32. Rdf1 {[%emt 0:02:39]} Qg5 {[%emt 0:01:49]} 33. Qf2 {[%emt 0:01:04]} Qe5 {[%emt 0:01:33]} 34. b3 {[%emt 0:02:26]} cxb3 {[%emt 0:01:14]} 35. Rxb3 {[%emt 0:00:03]} Qxe4 {[%emt 0:00:22]} 36. Rf3 {[%emt 0:00:30]} Qe5 {[%emt 0:02:55]} 37. a4 {[%emt 0:01:05]} Nxa4 {[%emt 0:01:59]} 38. Qxa7 {[%emt 0:00:20]} Qc5+ {[%emt 0:00:45]} 39. Qxc5 {[%emt 0:00:00]} Nxc5 {[%emt 0:00:00]} 40. Rb1 {[%emt 0:00:00]} g5 {[%emt 0:00:00]} 41. Rf5 {[%emt 0:02:43]} b6 {[%emt 0:04:34]} 42. Rd5 {[%emt 0:00:19]} Kg6 {[%emt 0:01:48]} 43. Rd8 {[%emt 0:00:27]} h5 {[%emt 0:03:35]} 44. Rb8 {[%emt 0:02:26]} Nd7 {[%emt 0:00:26]} 45. Rd8 {[%emt 0:06:00]} Ne5 {[%emt 0:02:12]} 46. Rb8 {[%emt 0:01:15]} Nc4 {[%emt 0:04:18]} 47. Rc8 {[%emt 0:00:35]} Nd2 {[%emt 0:03:12]} 48. Rb4 {[%emt 0:02:12]} g4 {[%emt 0:03:28]} 49. Rb8 {[%emt 0:01:04]} Kg5 {[%emt 0:05:34]} 50. R8xb6 {[%emt 0:00:34]} Re2 {[%emt 0:00:53]} 51. Ra6 {[%emt 0:04:29]} f5 {[%emt 0:02:17]} 52. Rb5 {[%emt 0:13:03]} Kf4 {[%emt 0:01:13]} 53. Ra4+ {[%emt 0:01:17]} Kg3 {[%emt 0:00:32]} 54. Ra3+ {[%emt 0:01:08]} Nf3+ {[%emt 0:00:15]} 0-1